[Event "27th 4NCL Congress Open 2022"]
[Site "Harrogate"]
[Date "2022.01.21"]
[Round "1.9"]
[White "Bradbury, Neil H"]
[Black "Varley, Joe"]
[Result "1/2-1/2"]
[ECO "D94"]
[WhiteElo "2241"]
[BlackElo "1832"]
[Annotator "ChessBase"]
[PlyCount "59"]
[EventDate "2022.01.21"]
[EventType "swiss"]
[EventCountry "ENG"]
[SourceTitle "playchess.com"]
[Source "ChessBase"]
[SourceQuality "1"]
[TimeControl "5400+30"]

1. d4 {[%emt 0:13:00]} Nf6 {[%emt 0:00:08]} 2. c4 {[%emt 0:04:19]} g6 {[%emt 0:00:08]} 3. Nc3 {[%emt 0:00:32]} d5 {[%emt 0:00:12]} 4. e3 {[%emt 0:00:40]} Bg7 {[%emt 0:00:13]} 5. Nf3 {[%emt 0:00:05]} O-O {[%emt 0:00:22]} 6. cxd5 {[%emt 0:00:38]} Nxd5 {[%emt 0:00:20]} 7. Bc4 {[%emt 0:00:14]} Nb6 {[%emt 0:02:50]} 8. Bb3 {[%emt 0:02:48]} Na6 {[%emt 0:04:01]} 9. a4 {[%emt 0:04:05]} c5 {[%emt 0:07:09]} 10. a5 {[%emt 0:04:08]} Nd7 {[%emt 0:02:13]} 11. O-O {[%emt 0:01:42]} cxd4 {[%emt 0:13:49]} 12. exd4 {[%emt 0:00:06]} Nf6 {[%emt 0:00:33]} 13. Ne5 {[%emt 0:00:13]} Nc7 {[%emt 0:04:14]} 14. Be3 {[%emt 0:11:40]} Be6 {[%emt 0:05:38]} 15. Bxe6 {[%emt 0:10:36]} Nxe6 {[%emt 0:00:15]} 16. a6 {[%emt 0:00:06]} bxa6 {[%emt 0:04:43]} 17. Rxa6 {[%emt 0:05:01]} Nc7 {[%emt 0:00:12]} 18. Ra3 {[%emt 0:00:34]} Qd6 {[%emt 0:03:57]} 19. Qf3 {[%emt 0:05:53]} Nfd5 {[%emt 0:10:10]} 20. Ne4 {[%emt 0:07:21]} Qb4 {[%emt 0:07:54]} 21. Nd3 {[%emt 0:05:06]} Qb6 {[%emt 0:07:11]} 22. Nec5 {[%emt 0:01:07]} Rfd8 {[%emt 0:06:59]} 23. Rfa1 {[%emt 0:05:23]} a5 {[%emt 0:04:16]} 24. g3 {[%emt 0:02:18]} Nb5 {[%emt 0:01:49]} 25. Ra4 {[%emt 0:00:44]} Ra7 {[%emt 0:03:32]} 26. Kg2 {[%emt 0:00:47]} Nbc7 {[%emt 0:02:50]} 27. b4 {[%emt 0:00:20]} Rda8 {[%emt 0:01:38]} 28. bxa5 {[%emt 0:10:12]} Rxa5 {[%emt 0:00:09]} 29. Nd7 {[%emt 0:00:09]} Qb5 {[%emt 0:00:52]} 30. Rxa5 {[%emt 0:00:46]} 1/2-1/2

[Event "27th 4NCL Congress Open 2022"]
[Site "Harrogate"]
[Date "2022.01.21"]
[Round "1.11"]
[White "Sedykh, Mikhail"]
[Black "Hymer, Barry"]
[Result "1/2-1/2"]
[ECO "A54"]
[WhiteElo "2122"]
[BlackElo "1896"]
[Annotator "ChessBase"]
[PlyCount "41"]
[EventDate "2022.01.21"]
[EventType "swiss"]
[EventCountry "ENG"]
[SourceTitle "playchess.com"]
[Source "ChessBase"]
[SourceQuality "1"]
[TimeControl "5400+30"]

1. d4 {[%emt 0:00:05]} Nf6 {[%emt 0:00:11]} 2. c4 {[%emt 0:00:08]} d6 {[%emt 0:00:15]} 3. Nf3 {[%emt 0:01:17]} Nbd7 {[%emt 0:00:08]} 4. Nc3 {[%emt 0:00:54]} e5 {[%emt 0:00:08]} 5. g3 {[%emt 0:02:17]} Be7 {[%emt 0:00:07]} 6. Bg2 {[%emt 0:00:04]} O-O {[%emt 0:00:13]} 7. O-O {[%emt 0:00:21]} c6 {[%emt 0:00:11]} 8. Qc2 {[%emt 0:02:53]} a6 {[%emt 0:01:47]} 9. Rd1 {[%emt 0:04:35]} Qc7 {[%emt 0:00:08]} 10. Nh4 {[%emt 0:05:54]} Re8 {[%emt 0:05:13]} 11. Nf5 {[%emt 0:02:50]} Bf8 {[%emt 0:00:11]} 12. b3 {[%emt 0:04:10]} Rb8 {[%emt 0:03:28]} 13. Ba3 {[%emt 0:06:41]} exd4 {[%emt 0:05:20]} 14. Rxd4 {[%emt 0:04:22]} Nc5 {[%emt 0:12:30]} 15. b4 {[%emt 0:14:57]} g6 {[%emt 0:05:19]} 16. bxc5 {[%emt 0:21:25]} dxc5 {[%emt 0:00:52]} 17. Rf4 {[%emt 0:04:25]} Nh5 {[%emt 0:14:09]} 18. Rg4 {[%emt 0:04:03]} Nf6 {[%emt 0:04:00]} 19. Rf4 {[%emt 0:03:02]} Nh5 {[%emt 0:07:24]} 20. Rg4 {[%emt 0:01:19]} Nf6 {[%emt 0:00:09]} 21. Rf4 {[%emt 0:04:06]} 1/2-1/2

[Event "27th 4NCL Congress Open 2022"]
[Site "Harrogate"]
[Date "2022.01.21"]
[Round "1.14"]
[White "Pal, Rohan"]
[Black "Smith, Andrew Philip"]
[Result "1/2-1/2"]
[ECO "C41"]
[WhiteElo "1817"]
[BlackElo "2112"]
[Annotator "ChessBase"]
[PlyCount "67"]
[EventDate "2022.01.21"]
[EventType "swiss"]
[EventCountry "ENG"]
[SourceTitle "playchess.com"]
[Source "ChessBase"]
[SourceQuality "1"]
[TimeControl "5400+30"]

1. e4 {[%emt 0:00:02]} e5 {[%emt 0:09:34]} 2. Nf3 {[%emt 0:00:13]} d6 {[%emt 0:00:07]} 3. d4 {[%emt 0:00:12]} Nd7 {[%emt 0:00:09]} 4. Bc4 {[%emt 0:00:30]} Qe7 {[%emt 0:00:21]} 5. Ng5 {[%emt 0:01:51]} Nh6 {[%emt 0:00:22]} 6. Nc3 {[%emt 0:00:40]} c6 {[%emt 0:00:14]} 7. d5 {[%emt 0:05:06]} c5 {[%emt 0:01:39]} 8. O-O {[%emt 0:04:35]} g6 {[%emt 0:04:14]} 9. Be3 {[%emt 0:03:43]} Bg7 {[%emt 0:01:25]} 10. f3 {[%emt 0:10:16]} O-O {[%emt 0:17:46]} 11. Qd2 {[%emt 0:00:41]} Nb6 {[%emt 0:00:56]} 12. Be2 {[%emt 0:00:30]} f5 {[%emt 0:07:38]} 13. Ne6 {[%emt 0:02:02]} Bxe6 {[%emt 0:03:11]} 14. Bg5 {[%emt 0:01:36]} Bf6 {[%emt 0:11:10]} 15. Bxh6 {[%emt 0:00:23]} Bd7 {[%emt 0:00:13]} 16. Bxf8 {[%emt 0:00:22]} Rxf8 {[%emt 0:00:05]} 17. g3 {[%emt 0:12:16]} Bg5 {[%emt 0:02:52]} 18. Qe1 {[%emt 0:05:36]} a6 {[%emt 0:02:12]} 19. Nd1 {[%emt 0:06:48]} h5 {[%emt 0:04:11]} 20. Qa5 {[%emt 0:08:12]} Na8 {[%emt 0:03:01]} 21. Nf2 {[%emt 0:07:27]} Be3 {[%emt 0:03:23]} 22. Kg2 {[%emt 0:05:48]} Qg5 {[%emt 0:05:31]} 23. Nd1 {[%emt 0:03:39]} Bd2 {[%emt 0:01:45]} 24. Qa3 {[%emt 0:03:00]} f4 {[%emt 0:04:35]} 25. Kf2 {[%emt 0:02:43]} fxg3+ {[%emt 0:00:56]} 26. hxg3 {[%emt 0:00:11]} h4 {[%emt 0:01:44]} 27. Rg1 {[%emt 0:01:37]} hxg3+ {[%emt 0:01:03]} 28. Rxg3 {[%emt 0:00:27]} Be1+ {[%emt 0:03:30]} 29. Kxe1 {[%emt 0:00:13]} Qxg3+ {[%emt 0:00:06]} 30. Kd2 {[%emt 0:00:37]} Nc7 {[%emt 0:00:55]} 31. c4 {[%emt 0:02:33]} Ne8 {[%emt 0:01:35]} 32. Qe3 {[%emt 0:00:56]} Kg7 {[%emt 0:05:45]} 33. Nf2 {[%emt 0:01:35]} Qf4 {[%emt 0:00:58]} 34. Qxf4 {[%emt 0:01:47]} 1/2-1/2

[Event "27th 4NCL Congress Open 2022"]
[Site "Harrogate"]
[Date "2022.01.21"]
[Round "1.15"]
[White "Jarmany, John"]
[Black "Miller, George"]
[Result "1-0"]
[ECO "D32"]
[WhiteElo "2126"]
[BlackElo "1796"]
[Annotator "ChessBase"]
[PlyCount "51"]
[EventDate "2022.01.21"]
[EventType "swiss"]
[EventCountry "ENG"]
[SourceTitle "playchess.com"]
[Source "ChessBase"]
[SourceQuality "1"]
[TimeControl "5400+30"]

1. d4 {[%emt 0:10:19]} d5 {[%emt 0:00:15]} 2. c4 {[%emt 0:00:04]} e6 {[%emt 0:00:05]} 3. Nc3 {[%emt 0:00:10]} c5 {[%emt 0:00:08]} 4. cxd5 {[%emt 0:00:23]} exd5 {[%emt 0:00:06]} 5. e4 {[%emt 0:01:05]} dxe4 {[%emt 0:01:45]} 6. Bc4 {[%emt 0:00:11]} Bf5 {[%emt 0:04:59]} 7. Qb3 {[%emt 0:02:26]} Bg6 {[%emt 0:07:25]} 8. Qxb7 {[%emt 0:00:38]} Nd7 {[%emt 0:00:53]} 9. Nb5 {[%emt 0:12:43]} Rc8 {[%emt 0:05:01]} 10. Bf4 {[%emt 0:00:08]} cxd4 {[%emt 0:09:00]} 11. Nc7+ {[%emt 0:06:55]} Rxc7 {[%emt 0:00:34]} 12. Bxc7 {[%emt 0:00:21]} Bb4+ {[%emt 0:02:57]} 13. Kf1 {[%emt 0:01:44]} Nc5 {[%emt 0:00:44]} 14. Bb5+ {[%emt 0:02:34]} Kf8 {[%emt 0:01:06]} 15. Qc6 {[%emt 0:00:48]} Ne7 {[%emt 0:01:25]} 16. Qxc5 {[%emt 0:05:08]} Bxc5 {[%emt 0:08:05]} 17. Bxd8 {[%emt 0:00:04]} d3 {[%emt 0:00:21]} 18. Rc1 {[%emt 0:05:31]} Bd6 {[%emt 0:01:37]} 19. Ne2 {[%emt 0:02:50]} Nf5 {[%emt 0:00:27]} 20. Rc8 {[%emt 0:09:47]} f6 {[%emt 0:01:46]} 21. Nc3 {[%emt 0:04:54]} Nd4 {[%emt 0:01:42]} 22. Bc7+ {[%emt 0:01:54]} Ke7 {[%emt 0:00:17]} 23. Bxd6+ {[%emt 0:00:03]} Kxd6 {[%emt 0:00:07]} 24. Rxh8 {[%emt 0:00:11]} Nxb5 {[%emt 0:00:32]} 25. Nxb5+ {[%emt 0:00:09]} Kc5 {[%emt 0:00:05]} 26. Nc3 {[%emt 0:00:07]} 1-0

[Event "27th 4NCL Congress Open 2022"]
[Site "Harrogate"]
[Date "2022.01.21"]
[Round "1.16"]
[White "De Sousa Muachikape, Jael"]
[Black "Burnett, Andrew"]
[Result "0-1"]
[ECO "A56"]
[WhiteElo "1841"]
[BlackElo "2183"]
[Annotator "RC"]
[PlyCount "62"]
[EventDate "2022.01.21"]
[EventType "swiss"]
[EventCountry "ENG"]
[SourceTitle "playchess.com"]
[Source "ChessBase"]
[SourceQuality "1"]
[TimeControl "5400+30"]

1. d4 {[%emt 0:00:03]} Nf6 {[%emt 0:00:08]} 2. c4 {[%emt 0:00:04]} c5 {[%emt 0:00:22]} 3. d5 {[%emt 0:00:07]} e5 {[%emt 0:00:08]} 4. Nc3 {[%emt 0:01:26]} d6 {[%emt 0:00:05]} 5. e4 {[%emt 0:02:24]} Nbd7 {[%emt 0:00:05]} 6. Nf3 {[%emt 0:02:13]} g6 {[%emt 0:00:06]} 7. Be2 {[%emt 0:00:35]} a6 {[%emt 0:00:44]} 8. Bg5 {[%emt 0:00:45]} h6 {[%emt 0:01:00]} 9. Bd2 {[%emt 0:01:27]} Bg7 {[%emt 0:00:16]} 10. Qc2 {[%emt 0:00:27]} O-O {[%emt 0:01:20]} 11. h3 {[%emt 0:04:23]} Nh5 {[%emt 0:05:25]} 12. Qc1 {[%emt 0:01:26]} Kh7 {[%emt 0:02:07]} 13. g4 {[%emt 0:00:09]} Nf4 {[%emt 0:00:12]} 14. Bxf4 {[%emt 0:02:45]} exf4 {[%emt 0:00:07]} 15. g5 {[%emt 0:01:00]} Ne5 {[%emt 0:03:22]} 16. Qxf4 {[%emt 0:20:58]} Nxf3+ {[%emt 0:01:24]} 17. Qxf3 {[%emt 0:00:07]} Qxg5 {[%emt 0:03:31]} 18. h4 {[%emt 0:00:39]} Qe5 {[%emt 0:00:26]} 19. Rg1 {[%emt 0:07:16]} Bd7 {[%emt 0:02:50]} 20. Rb1 {[%emt 0:13:29]} b5 {[%emt 0:04:05]} 21. Bd3 {[%emt 0:02:55]} bxc4 {[%emt 0:05:11]} 22. Bxc4 {[%emt 0:00:15]} Rab8 {[%emt 0:00:27]} 23. Rg3 {[%emt 0:02:39]} f5 {[%emt 0:06:55]} 24. Bxa6 {[%emt 0:00:08]} fxe4 {[%emt 0:04:44]} 25. Qg2 {[%emt 0:03:20]} Rf3 {[%emt 0:02:44]} 26. Nd1 {[%emt 0:07:04]} Rxg3 {[%emt 0:02:45]} 27. fxg3 {[%emt 0:00:28]} Qxd5 {[%emt 0:00:30]} 28. Qc2 {[%emt 0:05:47]} Qe5 {[%emt 0:01:28]} 29. Kf2 {[%emt 0:01:17]} e3+ {[%emt 0:00:34]} 30. Nxe3 {[%emt 0:00:49]} Rf8+ {[%emt 0:00:20]} 31. Ke2 {[%emt 0:02:43]} Bg4+ {[%emt 0:00:16]} 0-1

[Event "27th 4NCL Congress Open 2022"]
[Site "Harrogate"]
[Date "2022.01.21"]
[Round "1.17"]
[White "Longson, Sarah N"]
[Black "Gordon, Sean"]
[Result "0-1"]
[ECO "B24"]
[WhiteElo "2036"]
[BlackElo "2039"]
[Annotator "ChessBase"]
[PlyCount "112"]
[EventDate "2022.01.21"]
[EventType "swiss"]
[EventCountry "ENG"]
[SourceTitle "playchess.com"]
[Source "ChessBase"]
[SourceQuality "1"]
[TimeControl "5400+30"]

1. e4 {[%emt 0:01:22]} c5 {[%emt 0:00:12]} 2. Nc3 {[%emt 0:00:17]} Nc6 {[%emt 0:00:11]} 3. g3 {[%emt 0:01:19]} g6 {[%emt 0:01:17]} 4. Bg2 {[%emt 0:00:12]} Bg7 {[%emt 0:00:30]} 5. d3 {[%emt 0:00:07]} e6 {[%emt 0:01:13]} 6. Be3 {[%emt 0:01:44]} b6 {[%emt 0:03:42]} 7. f4 {[%emt 0:01:37]} Nge7 {[%emt 0:01:17]} 8. Nge2 {[%emt 0:05:21]} Bb7 {[%emt 0:05:50]} 9. O-O {[%emt 0:08:16]} O-O {[%emt 0:06:21]} 10. d4 {[%emt 0:05:57]} d6 {[%emt 0:09:20]} 11. Qd2 {[%emt 0:04:55]} a6 {[%emt 0:04:17]} 12. Rad1 {[%emt 0:06:34]} Qc7 {[%emt 0:02:55]} 13. dxc5 {[%emt 0:10:01]} dxc5 {[%emt 0:00:57]} 14. Qd6 {[%emt 0:02:29]} Qxd6 {[%emt 0:09:32]} 15. Rxd6 {[%emt 0:00:05]} Rad8 {[%emt 0:02:36]} 16. Rxd8 {[%emt 0:02:49]} Rxd8 {[%emt 0:00:37]} 17. Na4 {[%emt 0:04:04]} Nd4 {[%emt 0:05:38]} 18. Nxd4 {[%emt 0:01:56]} Bxd4 {[%emt 0:00:25]} 19. Kf2 {[%emt 0:03:15]} Nc8 {[%emt 0:02:05]} 20. Re1 {[%emt 0:05:52]} Kf8 {[%emt 0:02:13]} 21. Nc3 {[%emt 0:03:02]} Bxc3 {[%emt 0:04:27]} 22. bxc3 {[%emt 0:00:11]} f5 {[%emt 0:00:54]} 23. exf5 {[%emt 0:05:08]} Bxg2 {[%emt 0:00:32]} 24. Kxg2 {[%emt 0:00:20]} exf5 {[%emt 0:00:39]} 25. Kf3 {[%emt 0:05:31]} Nd6 {[%emt 0:04:16]} 26. g4 {[%emt 0:04:38]} Ne4 {[%emt 0:04:16]} 27. a4 {[%emt 0:03:20]} a5 {[%emt 0:01:27]} 28. Rb1 {[%emt 0:00:44]} Rd6 {[%emt 0:01:08]} 29. h4 {[%emt 0:03:37]} h5 {[%emt 0:01:33]} 30. g5 {[%emt 0:02:18]} Kf7 {[%emt 0:01:46]} 31. Rb3 {[%emt 0:00:24]} Ke6 {[%emt 0:03:27]} 32. c4 {[%emt 0:01:55]} Kd7 {[%emt 0:00:23]} 33. Bc1 {[%emt 0:06:02]} Kc6 {[%emt 0:02:43]} 34. Rd3 {[%emt 0:00:58]} Rxd3+ {[%emt 0:00:39]} 35. cxd3 {[%emt 0:00:01]} Nc3 {[%emt 0:00:10]} 36. Bb2 {[%emt 0:00:14]} Nxa4 {[%emt 0:00:07]} 37. Bf6 {[%emt 0:00:13]} b5 {[%emt 0:00:28]} 38. cxb5+ {[%emt 0:00:14]} Kxb5 {[%emt 0:00:16]} 39. Ke3 {[%emt 0:00:55]} Nb6 {[%emt 0:00:41]} 40. Kd2 {[%emt 0:00:53]} Nd5 {[%emt 0:00:34]} 41. Be5 {[%emt 0:00:15]} Kb4 {[%emt 0:01:41]} 42. Bd6 {[%emt 0:00:18]} a4 {[%emt 0:01:00]} 43. d4 {[%emt 0:00:12]} Kb3 {[%emt 0:01:57]} 44. dxc5 {[%emt 0:00:18]} Nb4 {[%emt 0:01:16]} 45. Be5 {[%emt 0:01:32]} a3 {[%emt 0:02:06]} 46. Bc3 {[%emt 0:01:27]} a2 {[%emt 0:00:52]} 47. Be5 {[%emt 0:00:13]} Nc6 {[%emt 0:01:01]} 48. Bf6 {[%emt 0:00:27]} Kc4 {[%emt 0:00:15]} 49. Kc2 {[%emt 0:00:11]} Nd4+ {[%emt 0:00:33]} 50. Kb2 {[%emt 0:00:40]} Kxc5 {[%emt 0:00:20]} 51. Kxa2 {[%emt 0:00:05]} Nf3 {[%emt 0:00:17]} 52. Kb3 {[%emt 0:00:16]} Kd5 {[%emt 0:00:16]} 53. Kc3 {[%emt 0:00:44]} Ke4 {[%emt 0:00:05]} 54. Be5 {[%emt 0:01:10]} Nxh4 {[%emt 0:00:12]} 55. Bd6 {[%emt 0:00:32]} Ng2 {[%emt 0:00:15]} 56. Kd2 {[%emt 0:00:04]} Kf3 {[%emt 0:00:14]} 0-1

[Event "27th 4NCL Congress Open 2022"]
[Site "Harrogate"]
[Date "2022.01.21"]
[Round "1.18"]
[White "Waterfield, Mark"]
[Black "Ther, Mate"]
[Result "1-0"]
[ECO "C56"]
[WhiteElo "1724"]
[BlackElo "2031"]
[Annotator "ChessBase"]
[PlyCount "99"]
[EventDate "2022.01.21"]
[EventType "swiss"]
[EventCountry "ENG"]
[SourceTitle "playchess.com"]
[Source "ChessBase"]
[SourceQuality "1"]
[TimeControl "5400+30"]

1. e4 {[%emt 0:00:06]} e5 {[%emt 0:00:11]} 2. Nf3 {[%emt 0:00:07]} Nc6 {[%emt 0:00:08]} 3. d4 {[%emt 0:01:03]} exd4 {[%emt 0:00:09]} 4. Bc4 {[%emt 0:00:13]} Nf6 {[%emt 0:00:26]} 5. e5 {[%emt 0:00:45]} d5 {[%emt 0:00:06]} 6. Bb5 {[%emt 0:00:17]} Ne4 {[%emt 0:00:07]} 7. Nxd4 {[%emt 0:02:35]} Bc5 {[%emt 0:00:15]} 8. O-O {[%emt 0:01:43]} O-O {[%emt 0:18:52]} 9. Nxc6 {[%emt 0:22:01]} Qh4 {[%emt 0:28:03]} 10. Be3 {[%emt 0:08:50]} bxc6 {[%emt 0:00:24]} 11. Bxc6 {[%emt 0:00:27]} Rb8 {[%emt 0:06:34]} 12. Qxd5 {[%emt 0:04:09]} Bxe3 {[%emt 0:04:35]} 13. fxe3 {[%emt 0:00:14]} Bf5 {[%emt 0:02:23]} 14. b3 {[%emt 0:03:31]} Rbd8 {[%emt 0:04:50]} 15. Qa5 {[%emt 0:04:01]} Bg6 {[%emt 0:13:02]} 16. Nc3 {[%emt 0:04:10]} Nxc3 {[%emt 0:08:17]} 17. Qxc3 {[%emt 0:00:07]} Qe7 {[%emt 0:00:33]} 18. Rad1 {[%emt 0:02:15]} Qa3 {[%emt 0:00:42]} 19. Ra1 {[%emt 0:01:22]} h6 {[%emt 0:01:03]} 20. Rf4 {[%emt 0:01:16]} Qa6 {[%emt 0:01:29]} 21. a4 {[%emt 0:04:50]} Qe2 {[%emt 0:01:11]} 22. Rf2 {[%emt 0:00:46]} Rd1+ {[%emt 0:00:00]} 23. Rxd1 {[%emt 0:00:18]} Qxd1+ {[%emt 0:00:00]} 24. Rf1 {[%emt 0:00:15]} Qxc2 {[%emt 0:07:00]} 25. Qxc2 {[%emt 0:00:14]} Bxc2 {[%emt 0:00:07]} 26. Bd5 {[%emt 0:01:03]} c6 {[%emt 0:00:23]} 27. Bc4 {[%emt 0:00:50]} g6 {[%emt 0:02:17]} 28. Rf6 {[%emt 0:06:28]} Be4 {[%emt 0:00:08]} 29. e6 {[%emt 0:07:01]} fxe6 {[%emt 0:00:36]} 30. Rxe6 {[%emt 0:00:18]} Bd5 {[%emt 0:00:32]} 31. Bxd5 {[%emt 0:02:04]} cxd5 {[%emt 0:00:07]} 32. Rxg6+ {[%emt 0:00:08]} Kh7 {[%emt 0:00:08]} 33. Rd6 {[%emt 0:00:18]} Rb8 {[%emt 0:00:31]} 34. Rxd5 {[%emt 0:02:10]} Rxb3 {[%emt 0:00:07]} 35. Re5 {[%emt 0:00:34]} Ra3 {[%emt 0:00:18]} 36. a5 {[%emt 0:00:18]} Kg6 {[%emt 0:00:08]} 37. Kf2 {[%emt 0:00:09]} Kf6 {[%emt 0:00:18]} 38. Rh5 {[%emt 0:00:18]} Kg6 {[%emt 0:00:16]} 39. Rb5 {[%emt 0:00:16]} Ra1 {[%emt 0:00:22]} 40. h3 {[%emt 0:00:32]} Ra4 {[%emt 0:00:36]} 41. Kf3 {[%emt 0:00:35]} Ra3 {[%emt 0:00:18]} 42. Rc5 {[%emt 0:02:47]} Ra2 {[%emt 0:00:21]} 43. h4 {[%emt 0:00:26]} Ra4 {[%emt 0:00:16]} 44. g3 {[%emt 0:00:38]} Ra1 {[%emt 0:00:06]} 45. h5+ {[%emt 0:01:50]} Kf6 {[%emt 0:00:10]} 46. e4 {[%emt 0:01:43]} Ra2 {[%emt 0:00:19]} 47. Kg4 {[%emt 0:01:02]} Ra1 {[%emt 0:00:18]} 48. Rc6+ {[%emt 0:01:58]} Ke5 {[%emt 0:00:06]} 49. a6 {[%emt 0:00:06]} Kxe4 {[%emt 0:00:29]} 50. Rxh6 {[%emt 0:00:09]} 1-0

[Event "27th 4NCL Congress Open 2022"]
[Site "Harrogate"]
[Date "2022.01.21"]
[Round "1.19"]
[White "Stubbs, Oliver"]
[Black "May, Paul"]
[Result "1-0"]
[ECO "B06"]
[WhiteElo "1920"]
[BlackElo "1735"]
[Annotator "ChessBase"]
[PlyCount "69"]
[EventDate "2022.01.21"]
[EventType "swiss"]
[EventCountry "ENG"]
[SourceTitle "playchess.com"]
[Source "ChessBase"]
[SourceQuality "1"]
[TimeControl "5400+30"]

1. d4 {[%emt 0:00:04]} g6 {[%emt 0:00:07]} 2. e4 {[%emt 0:00:06]} Bg7 {[%emt 0:00:05]} 3. Nc3 {[%emt 0:00:08]} a6 {[%emt 0:00:14]} 4. Be3 {[%emt 0:01:36]} b5 {[%emt 0:02:43]} 5. a4 {[%emt 0:04:37]} b4 {[%emt 0:04:42]} 6. Nd5 {[%emt 0:03:06]} a5 {[%emt 0:11:04]} 7. f3 {[%emt 0:01:52]} d6 {[%emt 0:04:45]} 8. Qd2 {[%emt 0:03:19]} h6 {[%emt 0:05:29]} 9. h4 {[%emt 0:08:16]} e5 {[%emt 0:10:10]} 10. dxe5 {[%emt 0:04:11]} dxe5 {[%emt 0:00:57]} 11. O-O-O {[%emt 0:07:22]} Ba6 {[%emt 0:05:16]} 12. Bxa6 {[%emt 0:02:55]} Nxa6 {[%emt 0:05:15]} 13. Ne2 {[%emt 0:02:03]} Nf6 {[%emt 0:09:19]} 14. Ng3 {[%emt 0:12:31]} Nxd5 {[%emt 0:05:15]} 15. Qxd5 {[%emt 0:00:56]} Qxd5 {[%emt 0:01:13]} 16. Rxd5 {[%emt 0:00:07]} O-O {[%emt 0:10:56]} 17. h5 {[%emt 0:00:44]} Kh7 {[%emt 0:01:54]} 18. hxg6+ {[%emt 0:00:10]} fxg6 {[%emt 0:00:33]} 19. Bxh6 {[%emt 0:02:57]} Bxh6+ {[%emt 0:00:42]} 20. Kb1 {[%emt 0:00:21]} Nb8 {[%emt 0:04:27]} 21. Rxe5 {[%emt 0:00:27]} Nc6 {[%emt 0:00:19]} 22. Re6 {[%emt 0:00:39]} Ra6 {[%emt 0:00:41]} 23. Nf5 {[%emt 0:00:50]} gxf5 {[%emt 0:03:05]} 24. Rhxh6+ {[%emt 0:00:13]} Kg7 {[%emt 0:00:24]} 25. Rxc6 {[%emt 0:00:28]} Rxc6 {[%emt 0:04:06]} 26. Rxc6 {[%emt 0:00:09]} fxe4 {[%emt 0:00:32]} 27. Rxc7+ {[%emt 0:00:06]} Kg6 {[%emt 0:00:28]} 28. fxe4 {[%emt 0:00:08]} Re8 {[%emt 0:00:47]} 29. Rc6+ {[%emt 0:00:32]} Kf7 {[%emt 0:00:15]} 30. Rc4 {[%emt 0:01:02]} Rg8 {[%emt 0:00:12]} 31. Rc5 {[%emt 0:00:15]} Rxg2 {[%emt 0:00:22]} 32. Rxa5 {[%emt 0:00:04]} Rg1+ {[%emt 0:00:37]} 33. Ka2 {[%emt 0:00:05]} Re1 {[%emt 0:00:34]} 34. e5 {[%emt 0:00:04]} Ke6 {[%emt 0:00:30]} 35. Rc5 {[%emt 0:00:23]} 1-0

[Event "27th 4NCL Congress Open 2022"]
[Site "Harrogate"]
[Date "2022.01.21"]
[Round "1.20"]
[White "Bayford, Jim R"]
[Black "Gomez Torres, Richard Daniel"]
[Result "0-1"]
[ECO "C56"]
[WhiteElo "2023"]
[BlackElo "2209"]
[Annotator "RC"]
[PlyCount "64"]
[EventDate "2022.01.21"]
[EventType "swiss"]
[EventCountry "ENG"]
[SourceTitle "playchess.com"]
[Source "ChessBase"]
[SourceQuality "1"]
[TimeControl "5400+30"]

1. e4 {[%emt 0:00:07]} e5 {[%emt 0:00:08]} 2. Nf3 {[%emt 0:00:34]} Nc6 {[%emt 0:00:07]} 3. Bc4 {[%emt 0:00:40]} Nf6 {[%emt 0:00:08]} 4. O-O {[%emt 0:00:28]} Nxe4 {[%emt 0:01:19]} 5. d4 {[%emt 0:00:47]} exd4 {[%emt 0:01:17]} 6. Nxd4 {[%emt 0:00:22]} d5 {[%emt 0:05:13]} 7. Bb3 {[%emt 0:01:35]} Be7 {[%emt 0:07:23]} 8. Bf4 {[%emt 0:01:55]} a6 {[%emt 0:05:48]} 9. Nf3 {[%emt 0:00:50]} Be6 {[%emt 0:03:07]} 10. h3 {[%emt 0:04:21]} O-O {[%emt 0:02:33]} 11. Nbd2 {[%emt 0:03:12]} Nc5 {[%emt 0:06:16]} 12. Ne5 {[%emt 0:06:57]} Nxe5 {[%emt 0:07:42]} 13. Bxe5 {[%emt 0:00:16]} Nxb3 {[%emt 0:00:06]} 14. axb3 {[%emt 0:00:56]} c5 {[%emt 0:00:12]} 15. Qf3 {[%emt 0:02:22]} Qd7 {[%emt 0:09:17]} 16. Rad1 {[%emt 0:02:36]} Rac8 {[%emt 0:01:05]} 17. Nc4 {[%emt 0:00:19]} Qc6 {[%emt 0:00:38]} 18. Ne3 {[%emt 0:02:34]} f6 {[%emt 0:02:11]} 19. Bg3 {[%emt 0:03:32]} Rfd8 {[%emt 0:00:34]} 20. Nf5 {[%emt 0:01:18]} Bf8 {[%emt 0:00:21]} 21. Ne3 {[%emt 0:04:33]} b5 {[%emt 0:03:00]} 22. Bh4 {[%emt 0:04:08]} d4 {[%emt 0:01:04]} 23. Ng4 {[%emt 0:01:55]} Qxf3 {[%emt 0:00:24]} 24. gxf3 {[%emt 0:00:30]} h5 {[%emt 0:00:30]} 25. Nxf6+ {[%emt 0:00:30]} gxf6 {[%emt 0:00:30]} 26. Bxf6 {[%emt 0:00:30]} Rd5 {[%emt 0:00:30]} 27. Kh1 {[%emt 0:00:30]} Rf5 {[%emt 0:00:30]} 28. Bh4 {[%emt 0:00:30]} Rxf3 {[%emt 0:00:30]} 29. Bg3 {[%emt 0:00:30]} h4 {[%emt 0:00:30]} 30. Bxh4 {[%emt 0:00:30]} Rxh3+ {[%emt 0:00:30]} 31. Kg2 {[%emt 0:00:30]} Rf3 {[%emt 0:03:44]} 32. Kh1 {[%emt 0:00:14]} Rh3+ {[%emt 0:00:08]} 0-1

[Event "27th 4NCL Congress Open 2022"]
[Site "Harrogate"]
[Date "2022.01.22"]
[Round "2.8"]
[White "Sowray, Peter J"]
[Black "Waterfield, Mark"]
[Result "1-0"]
[ECO "E06"]
[WhiteElo "2239"]
[BlackElo "1724"]
[Annotator "ChessBase"]
[PlyCount "47"]
[EventDate "2022.01.21"]
[EventType "swiss"]
[EventCountry "ENG"]
[SourceTitle "playchess.com"]
[Source "ChessBase"]
[SourceQuality "1"]
[TimeControl "5400+30"]

1. d4 {[%emt 0:00:05]} d5 {[%emt 0:00:33]} 2. c4 {[%emt 0:00:27]} e6 {[%emt 0:00:20]} 3. Nc3 {[%emt 0:00:31]} Nf6 {[%emt 0:00:30]} 4. Nf3 {[%emt 0:00:08]} Be7 {[%emt 0:03:15]} 5. g3 {[%emt 0:00:11]} O-O {[%emt 0:00:48]} 6. Bg2 {[%emt 0:00:31]} c6 {[%emt 0:00:45]} 7. O-O {[%emt 0:02:54]} b6 {[%emt 0:01:00]} 8. b3 {[%emt 0:05:10]} Bb7 {[%emt 0:01:24]} 9. Qc2 {[%emt 0:00:10]} Nbd7 {[%emt 0:01:02]} 10. e4 {[%emt 0:01:11]} c5 {[%emt 0:13:50]} 11. exd5 {[%emt 0:10:15]} exd5 {[%emt 0:00:47]} 12. Rd1 {[%emt 0:03:32]} dxc4 {[%emt 0:10:33]} 13. d5 {[%emt 0:00:10]} cxb3 {[%emt 0:06:30]} 14. axb3 {[%emt 0:00:02]} Re8 {[%emt 0:02:44]} 15. d6 {[%emt 0:06:32]} Bf8 {[%emt 0:00:14]} 16. Nb5 {[%emt 0:00:29]} Nd5 {[%emt 0:05:10]} 17. Ng5 {[%emt 0:02:28]} N7f6 {[%emt 0:03:53]} 18. Nc7 {[%emt 0:08:47]} Nb4 {[%emt 0:04:31]} 19. Qc4 {[%emt 0:02:07]} Bxg2 {[%emt 0:09:37]} 20. Nxf7 {[%emt 0:02:26]} Bd5 {[%emt 0:00:35]} 21. Nxd5 {[%emt 0:00:26]} Re4 {[%emt 0:07:27]} 22. Nxf6+ {[%emt 0:01:10]} gxf6 {[%emt 0:01:29]} 23. Nh6+ {[%emt 0:00:11]} Kg7 {[%emt 0:00:27]} 24. Qg8# {[%emt 0:00:25]} 1-0